lending/lending_fUSD_20240522
["ID","MTS","AMOUNT","RATE_DAILY","PERIOD"]
[327730529,1716392194130,19916.92441779,0.0001081,2]
[327730530,1716392194476,150.0,0.0001027,2]
[327730531,1716392194498,150.0,0.0001027,2]
[327730532,1716392194519,150.0,0.0001027,2]
[327730533,1716392194541,150.0,0.0001027,2]
[327730534,1716392194563,150.0,0.0001027,2]
[327730535,1716392194584,150.0,0.0001027,2]
[327730536,1716392194605,55.98631994,0.0001027,2]
[327730537,1716392194945,94.01368006,0.0001081,2]
[327730538,1716392194967,150.0,0.0001081,2]
[327730539,1716392194990,54.99142046,0.0001081,2]
[327730540,1716392195124,95.00857954,0.0001081,2]
[327730541,1716392195145,150.0,0.0001081,2]
[327730542,1716392195168,150.0,0.0001081,2]
[327730543,1716392195189,150.0,0.0001081,2]
[327730544,1716392195213,150.0,0.0001081,2]
[327730545,1716392195235,150.0,0.0001081,2]
[327730546,1716392195258,100.7286251,0.0001081,2]
[327730547,1716392200099,150.0,0.0001081,2]
[327730548,1716392200122,5.0,0.0001081,2]
[327730549,1716392203313,150.0,0.0001081,2]
[327730550,1716392203336,150.0,0.0001081,2]
[327730551,1716392203359,269.76984497,0.0001081,2]
[327730552,1716392203382,6950.53732044,0.0001081,2]
[327730553,1716392204142,180.0617525,0.0001081,2]
[327730554,1716392206298,150.0,0.0001081,2]
[327730555,1716392206319,150.0,0.0001081,2]
[327730556,1716392206340,62.23063695,0.0001081,2]
[327730557,1716392208083,87.76936305,0.0001081,2]
[327730558,1716392208105,150.0,0.0001081,2]
[327730559,1716392208127,150.0,0.0001081,2]
[327730560,1716392208149,150.0,0.0001081,2]
[327730561,1716392208171,150.0,0.0001081,2]
[327730562,1716392208193,150.0,0.0001081,2]
[327730563,1716392208217,150.0,0.0001081,2]
[327730564,1716392208239,150.0,0.0001081,2]
[327730565,1716392208262,150.0,0.0001081,2]
[327730566,1716392208284,150.0,0.0001081,2]
[327730567,1716392208305,150.0,0.0001081,2]
[327730568,1716392208327,150.0,0.0001081,2]
[327730569,1716392208348,150.0,0.0001081,2]
[327730570,1716392208370,150.0,0.0001081,2]
[327730571,1716392208392,150.0,0.0001081,2]
[327730572,1716392208415,150.0,0.0001081,2]
[327730573,1716392208438,150.0,0.0001081,2]
[327730574,1716392208461,150.0,0.0001081,2]
[327730575,1716392208484,150.0,0.0001081,2]
[327730576,1716392208506,150.0,0.0001081,2]
[327730577,1716392208528,150.0,0.0001081,2]
[327730578,1716392208551,150.0,0.0001081,2]
[327730579,1716392208574,194.2713749,0.0001081,2]
[327730580,1716392208597,150.0,0.0001081,2]
[327730581,1716392208619,10153.6517745,0.0001081,2]
[327730582,1716392210877,299.00510052,0.0001081,2]
[327730583,1716392210923,289.27687605,0.0001081,2]
[327730584,1716392211892,292.40415811,0.0001081,2]
[327730585,1716392212338,955.98631994,0.0001027,2]
[327730586,1716392213022,945.73720464,0.0001081,2]
[327730587,1716392220590,150.0,0.0001081,2]
[327730588,1716392220614,7370.30716541,0.0001081,2]
[327730589,1716392222389,362.23063695,0.0001081,2]
[327730590,1716392226933,289.27687605,0.0001081,2]
[327730591,1716392227149,150.5,0.00019716,15]
[327730592,1716392228886,299.00510052,0.0001081,2]
[327730593,1716392231018,324.28528355,0.0001081,2]
[327730594,1716392232332,955.98631994,0.0001027,2]
[327730596,1716392233876,292.40415811,0.0001081,2]
[327730597,1716392242921,289.27687605,0.0001081,2]
[327730598,1716392244432,362.23063695,0.0001081,2]
[327730599,1716392244562,3594.19217408,0.0001081,2]
[327730600,1716392247009,298.9650558,0.0001081,2]
[327730601,1716392252342,955.98631994,0.0001027,2]
[327730602,1716392253892,292.40415811,0.0001081,2]
[327730603,1716392260309,362.23063695,0.0001081,2]
[327730604,1716392264915,289.27687605,0.0001081,2]
[327730605,1716392270349,955.98631994,0.0001027,2]
[327730606,1716392272201,292.40415811,0.0001081,2]
[327730607,1716392278421,362.23063695,0.0001081,2]
[327730608,1716392280957,289.27687605,0.0001081,2]
[327730609,1716392288359,955.98631994,0.0001027,2]
[327730610,1716392289883,292.40415811,0.0001081,2]
[327730611,1716392294307,361.32511077,0.0001081,2]
[327730612,1716392298923,289.27687605,0.0001081,2]
[327730613,1716392304379,955.98631994,0.0001027,2]
[327730614,1716392305895,292.40415811,0.0001081,2]
[327730615,1716392317172,312.74791447,0.0001081,2]
[327730616,1716392320349,564.8063073,0.0001027,2]
[327730617,1716392324118,175.55622579,0.0001081,2]
[327730618,1716392345596,150.5,0.00019716,15]
[327730619,1716392346116,150.5,0.00019706,15]
[327730620,1716392346663,150.5,0.00019696,15]
[327730622,1716392468974,150.5,0.00019686,15]
[327730623,1716392469675,150.5,0.00019676,15]
[327730624,1716392471010,150.5,0.00019666,15]
[327730625,1716392559791,1544.0,0.00028,30]
[327730626,1716392588194,167.5,0.00019656,15]
[327730627,1716392596272,1479.0,0.00028,30]
[327730628,1716392652819,452.09796917,0.00011258,2]
[327730629,1716392667114,157.19,0.00010928,2]
[327730631,1716392851139,-174.64,0.00032095,120]
[327730632,1716392851214,-624.55016258,0.00033,120]
[327730633,1716392864532,-228.6,0.00033151,120]
[327730634,1716392864559,-665.45,0.00033151,120]
[327730635,1716392864624,-768.63817993,0.00034,120]
[327730636,1716392874175,1667.168689,0.00011892,2]
[327730637,1716392882835,402.51276888,0.00011949,2]
[327730638,1716392883930,155.0,0.00011949,2]
[327730639,1716392885506,3091.24034769,0.00011949,2]
[327730640,1716392889136,267.89346007,0.00011949,2]
[327730641,1716392899686,155.0,0.00011949,2]
[327730642,1716392901095,834.74999327,0.00011949,2]
[327730643,1716392903046,155.0,0.00011949,2]
[327730644,1716392904116,364.3773585,0.00011949,2]
[327730645,1716392911680,155.0,0.00011949,2]
[327730646,1716392912429,1381.46330774,0.00011949,2]
[327730647,1716392915126,306.42946503,0.00011949,2]
[327730648,1716392919664,3285.77643226,0.00011949,2]
[327730649,1716392920591,446.8178927,0.00011949,2]
[327730650,1716392921539,790.00185035,0.00011949,2]
[327730651,1716392923383,526.12031069,0.00011949,2]
[327730652,1716392923497,784.0719601,0.00011949,2]
[327730653,1716392923585,173.54651541,0.00011949,2]
[327730667,1716392937332,306.77,0.00010356,2]
[327730674,1716392938762,237.41199557,0.00011949,2]
[327730681,1716392942577,505.28772991,0.00011949,2]
[327730697,1716392968939,500.0,0.00034,120]
[327730703,1716393003933,741.94,0.00011889,2]
[327730705,1716393020130,267.89346007,0.00011949,2]
[327730707,1716393030082,155.0,0.00011949,2]
[327730720,1716393031832,-1195.53907704,0.0001195,2]
[327730721,1716393031898,-185.9242307,0.0001195,2]
[327730722,1716393031907,-557.27626484,0.0001195,2]
[327730723,1716393031965,-715.92505341,0.0001195,2]
[327730724,1716393031974,-150.0,0.00011951,2]
[327730725,1716393031984,-250.0,0.00012021,2]
[327730726,1716393031995,-679.01,0.00012053,2]
[327730727,1716393032005,-551.24,0.00012066,2]
[327730728,1716393032014,-790.00185035,0.00012134,2]
[327730729,1716393032025,-397.04741624,0.00012134,2]
[327730730,1716393032037,-129.07289445,0.00012134,2]
[327730731,1716393032047,-784.0719601,0.00012134,2]
[327730732,1716393032056,-834.74999327,0.00012135,2]
[327730733,1716393032066,-150.0,0.00012137,2]
[327730734,1716393032076,-10305.37,0.00012146,2]
[327730735,1716393032085,-4890.77041381,0.00012169,2]
[327730736,1716393032095,-21373.40420181,0.00012179,2]
[327730737,1716393032726,-2193.07254094,0.00012179,2]
[327730742,1716393038337,-505.28772991,0.00012133,2]
[327730743,1716393038347,-333.52325725,0.00012179,2]
[327730744,1716393038356,-250.0,0.00012274,2]
[327730745,1716393038366,-499.99,0.00012274,2]
[327730746,1716393038375,-150.99,0.00012274,2]
[327730747,1716393038385,-306.77,0.0001262,2]
[327730748,1716393038397,-177.68,0.00012636,2]
[327730749,1716393038406,-194.92328008,0.0001265,2]
[327730750,1716393038415,-155.21567507,0.0001265,2]
[327730751,1716393038424,-277.48275435,0.0001265,2]
[327730752,1716393038433,-2221.82871026,0.0001265,2]
[327730753,1716393038442,-318.04989705,0.0001265,2]
[327730754,1716393038451,-1248.98663554,0.00012885,2]
[327730755,1716393038460,-2363.51414189,0.00012891,2]
[327730756,1716393038469,-647.1329953,0.00012895,2]
[327730757,1716393038479,-155.94924465,0.00012895,2]
[327730758,1716393038489,-359.36595664,0.00012895,2]
[327730759,1716393038498,-274.26657988,0.00012895,2]
[327730760,1716393038507,-308.17522191,0.00012895,2]
[327730761,1716393038516,-448.29543391,0.00012895,2]
[327730762,1716393038525,-446.3436765,0.00012895,2]
[327730763,1716393038535,-328.10988178,0.00012895,2]
[327730764,1716393038544,-237.24936317,0.00012895,2]
[327730765,1716393038553,-2813.98016787,0.00012895,2]
[327730766,1716393038562,-360.39932816,0.00012895,2]
[327730767,1716393038572,-2919.23173604,0.00012895,2]
[327730768,1716393038581,-155.0,0.00012896,2]
[327730769,1716393038590,-307.33410312,0.00012896,2]
[327730770,1716393038600,-2748.60229261,0.00012897,2]
[327730774,1716393039539,-30026.23167583,0.00012897,2]
[327730775,1716393039567,-2183.05553526,0.00012897,2]
[327730776,1716393039578,-7065.3024,0.00012897,2]
[327730777,1716393039590,-1069.37222736,0.00012897,2]
[327730778,1716393039601,-1013.37199285,0.00012897,2]
[327730780,1716393039615,-141169.90050323,0.00012897,2]
[327730781,1716393039624,-17467.03,0.00012898,2]
[327730782,1716393039633,-168.16085337,0.000129,2]
[327730783,1716393039646,-177.58979721,0.000129,2]
[327730784,1716393039655,-2724.94012512,0.000129,2]
[327730785,1716393039665,-1691.59639655,0.000129,2]
[327730786,1716393039674,-319.57718616,0.000129,2]
[327730788,1716393039683,-752.76445657,0.000129,2]
[327730789,1716393039693,-8952.98925276,0.000129,2]
[327730790,1716393039703,-671.3025953,0.000129,2]
[327730791,1716393039712,-166.32466518,0.000129,2]
[327730792,1716393039722,-218.8764611,0.0001299,2]
[327730793,1716393039732,-218.8764611,0.0001299,2]
[327730794,1716393039741,-218.8764611,0.0001299,2]
[327730795,1716393039751,-154.96,0.0001299,2]
[327730796,1716393039761,-154.96,0.0001299,2]
[327730797,1716393039771,-154.96,0.0001299,2]
[327730798,1716393039780,-154.96,0.0001299,2]
[327730799,1716393039789,-154.96,0.0001299,2]
[327730800,1716393039799,-154.96,0.0001299,2]
[327730801,1716393039809,-154.96,0.0001299,2]
[327730802,1716393039819,-5565.87580621,0.00012994,2]
[327730803,1716393039829,-1825.78938997,0.00012998,2]
[327730804,1716393039838,-1064.33887229,0.00012998,2]
[327730805,1716393039848,-206.36727858,0.00012998,2]
[327730806,1716393039857,-155.24815308,0.00012998,2]
[327730808,1716393039867,-155.0,0.00012998,2]
[327730809,1716393039877,-1483.60627203,0.00012998,2]
[327730810,1716393039888,-155.6903809,0.00012998,2]
[327730811,1716393039898,-312.80892937,0.00012998,2]
[327730812,1716393039906,-155.0,0.00012998,2]
[327730813,1716393039915,-155.21997395,0.00012998,2]
[327730814,1716393039924,-300.49663506,0.00012998,2]
[327730815,1716393039934,-155.36933314,0.00012998,2]
[327730816,1716393039949,-163.92342611,0.00012998,2]
[327730817,1716393039958,-155.40188889,0.00012998,2]
[327730818,1716393039968,-276.26477197,0.00012998,2]
[327730819,1716393039979,-155.30503141,0.00012998,2]
[327730820,1716393039988,-178.9627083,0.00012998,2]
[327730821,1716393039998,-155.42865599,0.00012998,2]
[327730822,1716393040007,-249.83569552,0.00012998,2]
[327730823,1716393040020,-464.47281073,0.00012998,2]
[327730824,1716393040030,-156.78942446,0.00012998,2]
[327730825,1716393040040,-241.14361363,0.00012998,2]
[327730826,1716393040050,-1226.71869147,0.00012998,2]
[327730827,1716393040059,-162.52068352,0.00012998,2]
[327730828,1716393040068,-168.04912366,0.00012998,2]
[327730829,1716393040078,-323.68964923,0.00012998,2]
[327730830,1716393040087,-155.0,0.00012998,2]
[327730831,1716393040097,-156.01266103,0.00012998,2]
[327730832,1716393040108,-248.58476661,0.00012998,2]
[327730833,1716393040118,-204.63851411,0.00012998,2]
[327730834,1716393040127,-418.14988453,0.00012998,2]
[327730835,1716393040139,-263.61892074,0.00012998,2]
[327730836,1716393040149,-3845.0,0.00012998,2]
[327730837,1716393040158,-4273.69759396,0.00012998,2]
[327730838,1716393040167,-177.14232429,0.00012999,2]
[327730839,1716393040177,-18128.77714405,0.00012999,2]
[327730840,1716393040187,-150.0,0.00012999,2]
[327730841,1716393040197,-150.0,0.00012999,2]
[327730842,1716393040207,-150.0,0.00012999,2]
[327730843,1716393040217,-261682.97295105,0.00013,2]
[327730844,1716393040238,-2589.181607,0.00013,2]
[327730845,1716393040249,-5198.34195,0.00013,2]
[327730846,1716393041469,-7059.15225,0.00013,2]
[327730847,1716393041668,-129447.02690182,0.00013,2]
[327730848,1716393042535,-866.57163133,0.00013,2]
[327730849,1716393042548,-386.7847,0.00013,2]
[327730851,1716393042559,-280.62050714,0.00013,2]
[327730871,1716393043057,-5196.07958691,0.00013,2]
[327730874,1716393043070,-1428.2411047,0.00013,2]
[327730879,1716393043082,-256.89893274,0.00013,2]
[327730883,1716393043094,-6479.2731675,0.00013,2]
[327730886,1716393043106,-4449.1,0.00013,2]
[327730889,1716393043117,-886.45947666,0.00013,2]
[327730892,1716393043128,-368.03866808,0.00013,2]
[327730894,1716393043142,-940.67553752,0.00013,2]
[327730896,1716393043154,-35223.382872,0.00013,2]
[327730898,1716393043164,-42515.58346076,0.00013,2]
[327730899,1716393043176,-19967.95504947,0.00013,2]
[327730900,1716393043187,-1895.60277615,0.00013,2]
[327730906,1716393043590,-35230.0,0.00013,2]
[327730907,1716393043602,-473253.42298871,0.00013,2]
[327730908,1716393043613,-7056.9,0.00013,2]
[327730909,1716393043625,-2024.69448019,0.00013,2]
[327730910,1716393043636,-33762.40489173,0.00013,2]
[327730911,1716393043650,-7065.9036,0.00013,2]
[327730912,1716393043662,-1579.5550723,0.00013,2]
[327730927,1716393043820,-503.22646409,0.00012999,2]
[327730929,1716393043830,-751.32226351,0.00012999,2]
[327730931,1716393043839,-1085.4512724,0.00013,2]
[327730932,1716393043855,-500.0,0.00013,2]
[327730937,1716393046586,-1137.15617951,0.00012998,2]
[327730938,1716393046595,-549.34382049,0.00012999,2]
[327730939,1716393046767,-10.74805215,0.00012999,2]
[327730940,1716393046777,-781.36204742,0.00012999,2]
[327730941,1716393046787,-324.5147279,0.00013,2]
[327730942,1716393046834,-8747.68044,0.00013,2]
[327730943,1716393046846,-3376.45286615,0.00013,2]
[327730944,1716393046906,-24202.82465721,0.00013,2]
[327730959,1716393053156,705.52,0.00010959,2]
[327730977,1716393143057,2000.0,0.0001334,3]
[327730994,1716393314475,251.64,0.00033151,120]
[327731000,1716393424901,1410.45488818,0.0001188,2]
[327731001,1716393480209,1978.438858,0.00011913,2]
[327731002,1716393529677,388.31,0.00010111,2]
[327731003,1716393616794,536.62,0.00011902,2]
[327731004,1716393617404,536.62,0.00011906,2]
[327731005,1716393617461,536.62,0.00011909,2]
[327731006,1716393617528,536.62,0.00011912,2]
[327731007,1716393617768,536.62,0.00011915,2]
[327731008,1716393618197,536.62,0.00011918,2]
[327731009,1716393618439,536.62,0.00011921,2]
[327731010,1716393618657,536.62,0.00011924,2]
[327731011,1716393618883,536.62,0.00011927,2]
[327731012,1716393619071,536.62,0.00011931,2]
[327731013,1716393619714,536.62,0.00011934,2]
[327731014,1716393619936,536.62,0.00011937,2]
[327731015,1716393620163,536.62,0.0001194,2]
[327731016,1716393620414,536.62,0.00011943,2]
[327731017,1716393620637,536.62,0.00011946,2]
[327731018,1716393621074,536.62,0.00011949,2]
[327731019,1716393637456,155.77,0.00011693,2]
[327731020,1716393637692,155.77,0.00011731,2]
[327731021,1716393638295,155.77,0.00011769,2]
[327731022,1716393638341,220.67,0.00011606,2]
[327731023,1716393638419,155.77,0.00011807,2]
[327731024,1716393638477,155.77,0.00011845,2]
[327731025,1716393638732,155.77,0.00011883,2]
[327731026,1716393638969,155.77,0.00011921,2]
[327731027,1716393644172,281.93948937,0.00011605,2]
[327731028,1716393659894,237.41199557,0.00011949,2]
[327731029,1716393664476,1381.46330774,0.00011949,2]
[327731030,1716393665462,1298.39020343,0.00011949,2]
[327731031,1716393677856,10529.4669443,0.00011949,2]
[327731032,1716393694258,155.0,0.00011949,2]
[327731033,1716393694779,2363.51414189,0.00011949,2]
[327731034,1716393695477,23900.0,0.00011463,2]
[327731035,1716393698837,1206.15540379,0.00011949,2]
[327731036,1716393727372,602.11,0.00011474,2]
[327731037,1716393740292,313.99372925,0.00011949,2]
[327731038,1716393755186,250.0,0.00011474,2]
[327731039,1716393769593,790.00185035,0.00011949,2]
[327731040,1716393773178,505.28772991,0.00011949,2]
[327731041,1716393806369,250.0,0.00011466,2]
[327731043,1716393852642,1500.0,0.00011474,2]
[327731045,1716393873393,176.68023054,0.00011949,2]
[327731046,1716393889475,1575.39,0.0001147,2]
[327731047,1716393913326,554.54,0.00033151,120]
[327731048,1716393914198,505.28772991,0.00011949,2]
[327731049,1716393923315,627.99,0.00011486,2]
[327731050,1716393928611,276.486039,0.000304,120]
[327731051,1716393930938,1359.60269171,0.00011949,2]
[327731052,1716394003139,951.3,0.00011449,2]
[327731053,1716394018565,176.68023054,0.00011949,2]
[327731054,1716394028721,534.78834702,0.00011949,2]
[327731055,1716394038705,1591.92,0.00011557,2]
[327731056,1716394050959,543.21,0.00011465,2]
[327731057,1716394051267,150.0,0.00033315,120]
[327731058,1716394058374,500.0,0.00034,120]
[327731059,1716394059235,505.28772991,0.00011949,2]
[327731060,1716394063868,500.0,0.00034,120]
[327731061,1716394065526,384.18,9.577e-05,2]
[327731062,1716394065808,384.18,0.00011841,2]
[327731063,1716394075614,4294.47,0.00011495,2]
[327731064,1716394107209,158.47352896,0.00011852,2]
[327731065,1716394135932,155.77,0.00011759,2]
[327731066,1716394136048,155.77,0.00011827,2]
[327731067,1716394136292,155.77,0.00011895,2]
[327731141,1716394165437,176.68023054,0.00011949,2]
[327731154,1716394180325,150.0,0.00011531,2]
[327731155,1716394194236,505.28772991,0.00011949,2]
[327731156,1716394194637,23900.0,0.00011545,2]
[327731169,1716394231198,150.0,0.00033944,120]
[327731188,1716394232128,-575.63967207,0.0001195,2]
[327731189,1716394232141,-536.62,0.00011952,2]
[327731190,1716394232152,-536.62,0.00011956,2]
[327731191,1716394232161,-150.0,0.00011958,2]
[327731192,1716394232171,-150.0,0.00011958,2]
[327731193,1716394232180,-536.62,0.00011959,2]
[327731194,1716394232190,-2094.19209508,0.00011959,2]
[327731195,1716394232208,-2307.44308,0.00011959,2]
[327731196,1716394232221,-10573.8407,0.00011959,2]
[327731197,1716394232257,-17811.256461,0.00011959,2]
[327731198,1716394232269,-313.48100007,0.00011959,2]
[327731199,1716394232280,-2278.75238142,0.00011959,2]
[327731200,1716394232290,-536.62,0.00011962,2]
[327731201,1716394232301,-224.99,0.00011962,2]
[327731202,1716394232310,-155.77,0.00011963,2]
[327731203,1716394232321,-334.32443858,0.00011997,2]
[327731204,1716394232343,-1574.57556142,0.00011997,2]
[327731205,1716394232360,-166.7,0.00012017,2]
[327731206,1716394232370,-456.79,0.00012029,2]
[327731207,1716394232380,-155.77,0.00012031,2]
[327731208,1716394232389,-155.77,0.000121,2]
[327731209,1716394232399,-155.77,0.00012168,2]
[327731210,1716394232409,-176.68023054,0.00012214,2]
[327731211,1716394232418,-499.99,0.00012215,2]
[327731212,1716394232428,-155.77,0.00012236,2]
[327731213,1716394232440,-5349.85,0.00012276,2]
[327731214,1716394232450,-155.77,0.00012304,2]
[327731215,1716394232460,-958.48622308,0.00012348,2]
[327731216,1716394232470,-164.03435616,0.00012348,2]
[327731217,1716394232480,-155.77,0.00012372,2]
[327731218,1716394232490,-1566.03064875,0.00012625,2]
[327731219,1716394232499,-167.04,0.00012688,2]
[327731220,1716394232510,-171.94,0.00012694,2]
[327731221,1716394232520,-2603.99957143,0.0001274,2]
[327731222,1716394232531,-86.54689134,0.00012898,2]
[327731223,1716394232544,-3693.15490866,0.00012898,2]
[327731224,1716394232554,-543.21,0.00012899,2]
[327731225,1716394232564,-1000.0,0.000129,2]
[327731226,1716394232573,-1000.0,0.000129,2]
[327731227,1716394232583,-165.79824106,0.000129,2]
[327731228,1716394232592,-165.42920419,0.000129,2]
[327731229,1716394232604,-176.62927348,0.000129,2]
[327731230,1716394232618,-4416.32926689,0.000129,2]
[327731231,1716394232628,-447.53506354,0.000129,2]
[327731232,1716394232638,-5968.65950184,0.000129,2]
[327731233,1716394232647,-834.25577502,0.000129,2]
[327731234,1716394232659,-834.25577501,0.000129,2]
[327731235,1716394232669,-152.85,0.0001299,2]
[327731236,1716394232679,-152.85,0.0001299,2]
[327731237,1716394232689,-152.85,0.0001299,2]
[327731238,1716394232698,-152.85,0.0001299,2]
[327731239,1716394232708,-377.88213118,0.00012998,2]
[327731240,1716394232719,-314.17082997,0.00012998,2]
[327731241,1716394232729,-297.83725987,0.00012998,2]
[327731242,1716394232739,-467.22872884,0.00012998,2]
[327731243,1716394232749,-3284.46230029,0.00012998,2]
[327731244,1716394232758,-281.59752891,0.00012998,2]
[327731245,1716394232768,-329.40034147,0.00012998,2]
[327731246,1716394232781,-1318.02966755,0.00012998,2]
[327731247,1716394232791,-155.0,0.00012998,2]
[327731248,1716394232801,-2075.82075283,0.00012998,2]
[327731249,1716394232811,-788.24631466,0.00012998,2]
[327731250,1716394232821,-365.22044701,0.00012998,2]
[327731251,1716394232833,-1012.30856095,0.00012998,2]
[327731252,1716394232843,-531.47346642,0.00012998,2]
[327731253,1716394232855,-318.65494683,0.00012999,2]
[327731254,1716394232866,-277.55993092,0.00012999,2]
[327731255,1716394232876,-372.32307412,0.00012999,2]
[327731256,1716394232886,-160.95548384,0.00012999,2]
[327731264,1716394238033,-12129.45933,0.00012999,2]
[327731265,1716394238044,-351.92,0.00012999,2]
[327731266,1716394238057,-5472.48835,0.00012999,2]
[327731267,1716394238069,-6469.61154165,0.00012999,2]
[327731268,1716394238207,-5441.79697034,0.00012999,2]
[327731269,1716394238217,-150.0,0.00012999,2]
[327731270,1716394238227,-438.97290384,0.00013,2]
[327731271,1716394238252,-3368549.4874222,0.00013,2]
[327731272,1716394238262,-413883.51324234,0.00013,2]
[327731273,1716394238274,-592578.16892733,0.00013,2]
[327731274,1716394238305,-36962.38953883,0.00013,2]
[327731357,1716394240094,-361.32,0.00013,2]
[327731358,1716394240106,-432.917,0.00013,2]
[327731359,1716394240290,-129617.20688706,0.00013,2]
[327731360,1716394240300,-210.0,0.00013154,2]
[327731361,1716394240310,-210.0,0.00013154,2]
[327731362,1716394240319,-152.85,0.0001333,2]
[327731363,1716394240329,-150.0,0.00013339,2]
[327731364,1716394240339,-4527.79706639,0.0001334,2]
[327731365,1716394240371,-5658.36922939,0.0001334,2]
[327731366,1716394240383,-1102.35650124,0.0001334,2]
[327731367,1716394240395,-1366.29596794,0.0001334,2]
[327731368,1716394240408,-1362.14140002,0.0001334,2]
[327731369,1716394240432,-5619.8362805,0.0001334,2]
[327731370,1716394240445,-17803.25000001,0.0001334,2]
[327731371,1716394240460,-684.27487932,0.0001334,2]
[327731372,1716394240472,-20234.69999998,0.0001334,2]
[327731373,1716394240566,-22300.782624,0.0001334,2]
[327731389,1716394243084,-1264.52220557,0.0001334,2]
[327731401,1716394243277,-204861.62648086,0.0001334,2]
[327731402,1716394243289,-5245.85519999,0.0001334,2]
[327731403,1716394243450,-3155.11991369,0.0001334,2]
[327731404,1716394243463,-13466.11876709,0.0001334,2]
[327731405,1716394243475,-3183.11243257,0.0001334,2]
[327731406,1716394243486,-555.96901911,0.0001334,2]
[327731407,1716394243498,-2006.83317309,0.0001334,2]
[327731408,1716394243533,-402.976316,0.0001334,2]
[327731409,1716394243545,-392.4809798,0.0001334,2]
[327731410,1716394243564,-332.59159891,0.0001334,2]
[327731421,1716394243684,-33104.54569411,0.0001334,2]
[327731776,1716394247132,-1072.0,0.0001334,2]
[327731779,1716394247144,-7823.66923527,0.0001334,2]
[327731814,1716394247435,-833.83919157,0.0001334,2]
[327731816,1716394247447,-511.3632702,0.0001334,2]
[327732026,1716394506062,500.0,0.00034,120]
[327732027,1716394510938,209.7,0.00033151,120]
[327732028,1716394664007,151.0,0.0002988,120]
[327732029,1716394679400,151.0,0.00030408,120]
[327732030,1716394684384,151.0,0.0003041,120]
[327732031,1716394700283,151.0,0.00034,120]
[327732032,1716394720114,151.0,0.00034,120]
[327732033,1716394727858,151.0,0.00034,120]
[327732034,1716394735966,151.0,0.00034,120]
[327732035,1716394743219,151.0,0.00034,120]
[327732036,1716394750697,151.0,0.00034,120]
[327732037,1716394757796,151.0,0.00034,120]
[327732038,1716394766560,225.703137,0.00034,120]
[327732039,1716395039649,462.11,0.00033151,120]
[327732084,1716395432438,-402.51276888,0.00012252,2]
[327732085,1716395432448,-150.0,0.00012253,2]
[327732086,1716395432457,-160.2,0.00012817,2]
[327732087,1716395432466,-382.47865358,0.00012836,2]
[327732088,1716395432505,-3647.84658842,0.00012836,2]
[327732089,1716395432514,-296.7788555,0.00012901,2]
[327732090,1716395432526,-932.67160565,0.00012901,2]
[327732091,1716395432617,-303.95454909,0.00012901,2]
[327732092,1716395432626,-559.99216416,0.00013198,2]
[327732093,1716395432635,-722.26851448,0.00013199,2]
[327732094,1716395432646,-277.73148552,0.00013199,2]
[327732095,1716395432656,-150.0,0.00013199,2]
[327732096,1716395432665,-3362.28345761,0.000132,2]
[327732097,1716395432676,-251.86919556,0.000132,2]
[327732098,1716395432687,-423.94883635,0.000132,2]
[327732103,1716395438262,-16987.04296678,0.000132,2]
[327732105,1716395438294,-2619.35999913,0.000132,2]
[327732106,1716395438327,-2209.7621,0.000132,2]